[Event "Titled Tuesday Blitz March 29 Early 2022"]
[White "Murzin, Volodar"]
[Black "Bychkov, Vladimir"]
[WhiteFideId "44155573"]
[BlackFideId "24151513"]
[WhiteElo "2585"]
[BlackElo "2253"]
[Result "1-0"]
[Round "03"]
[TimeControl "180+1"]
[Date "2022.03.30"]
[WhiteClock "0:00:03"]
[BlackClock "0:00:15"]

1. e4 {[%clk 0:03:00]}  c6 {[%clk 0:02:58]} 2. d3 {[%clk 0:02:56]}  d5 {[%clk 0:02:59]} 3. Nd2 {[%clk 0:02:54]}  Qc7 {[%clk 0:03:00]} 4. Ngf3 {[%clk 0:02:50]}  g6 {[%clk 0:03:00]} 5. d4 {[%clk 0:02:40]}  dxe4 {[%clk 0:02:59]} 6. Nxe4 {[%clk 0:02:40]}  Bg7 {[%clk 0:03:00]} 7. Bc4 {[%clk 0:02:37]}  Nf6 {[%clk 0:03:00]} 8. Nxf6+ {[%clk 0:02:36]}  Bxf6 {[%clk 0:02:59]} 9. Bh6 {[%clk 0:02:36]}  Nd7 {[%clk 0:02:48]} 10. O-O {[%clk 0:02:33]}  Nb6 {[%clk 0:02:49]} 11. Bb3 {[%clk 0:02:33]}  a5 {[%clk 0:02:47]} 12. a3 {[%clk 0:02:29]}  a4 {[%clk 0:02:46]} 13. Ba2 {[%clk 0:02:29]}  Bf5 {[%clk 0:02:46]} 14. Qe2 {[%clk 0:02:28]}  Rg8 {[%clk 0:02:42]} 15. Rfe1 {[%clk 0:02:23]}  g5 {[%clk 0:02:39]} 16. Qd2 {[%clk 0:01:53]}  g4 {[%clk 0:02:25]} 17. Ne5 {[%clk 0:01:48]}  e6 {[%clk 0:02:11]} 18. c4 {[%clk 0:01:36]}  Rd8 {[%clk 0:02:03]} 19. Qf4 {[%clk 0:01:34]}  Nd7 {[%clk 0:01:50]} 20. Nxg4 {[%clk 0:01:13]}  Qxf4 {[%clk 0:01:42]} 21. Nxf6+ {[%clk 0:01:14]}  Nxf6 {[%clk 0:01:42]} 22. Bxf4 {[%clk 0:01:15]}  Rxd4 {[%clk 0:00:53]} 23. Be5 {[%clk 0:01:13]}  Rdg4 {[%clk 0:00:53]} 24. Bxf6 {[%clk 0:00:25]}  Rxg2+ {[%clk 0:00:52]} 25. Kh1 {[%clk 0:00:26]}  Rg1+ {[%clk 0:00:53]} 26. Rxg1 {[%clk 0:00:21]}  Be4+ {[%clk 0:00:53]} 27. Rg2 {[%clk 0:00:19]}  Rxg2 {[%clk 0:00:53]} 28. Re1 {[%clk 0:00:16]}  Bf3 {[%clk 0:00:49]} 29. Re3 {[%clk 0:00:06]}  Rg3+ {[%clk 0:00:44]} 30. Rxf3 {[%clk 0:00:06]}  Rxf3 {[%clk 0:00:45]} 31. Bh4 {[%clk 0:00:04]}  c5 {[%clk 0:00:42]} 32. Bb1 {[%clk 0:00:02]}  Rb3 {[%clk 0:00:42]} 33. Bf6 {[%clk 0:00:01]}  Rf3 {[%clk 0:00:40]} 34. Bc3 {[%clk 0:00:02]}  Rxf2 {[%clk 0:00:40]} 35. Bxh7 {[%clk 0:00:01]}  f5 {[%clk 0:00:38]} 36. Kg1 {[%clk 0:00:02]}  Rc2 {[%clk 0:00:38]} 37. Bg6+ {[%clk 0:00:03]}  Ke7 {[%clk 0:00:38]} 38. h4 {[%clk 0:00:04]}  Re2 {[%clk 0:00:24]} 39. h5 {[%clk 0:00:04]}  e5 {[%clk 0:00:25]} 40. Bxf5 {[%clk 0:00:03]}  Kf6 {[%clk 0:00:25]} 41. Bd3 {[%clk 0:00:03]}  Re3 {[%clk 0:00:25]} 42. Bg6 {[%clk 0:00:04]}  Rg3+ {[%clk 0:00:20]} 43. Kf2 {[%clk 0:00:04]}  Rg4 {[%clk 0:00:20]} 44. Be8 {[%clk 0:00:03]}  Rxc4 {[%clk 0:00:20]} 45. Ke3 {[%clk 0:00:03]}  Rh4 {[%clk 0:00:20]} 46. Kd3 {[%clk 0:00:04]}  c4+ {[%clk 0:00:18]} 47. Ke3 {[%clk 0:00:04]}  Ke7 {[%clk 0:00:18]} 48. Bxa4 {[%clk 0:00:03]}  Rxh5 {[%clk 0:00:18]} 49. Bb5 {[%clk 0:00:03]}  Rh4 {[%clk 0:00:18]} 50. Bxe5 {[%clk 0:00:04]}  Ke6 {[%clk 0:00:18]} 51. Bc3 {[%clk 0:00:04]}  Kd5 {[%clk 0:00:19]} 52. Ba4 {[%clk 0:00:03]}  Kc5 {[%clk 0:00:19]} 53. Kd2 {[%clk 0:00:04]}  b5 {[%clk 0:00:19]} 54. Bd1 {[%clk 0:00:03]}  Rh2+ {[%clk 0:00:19]} 55. Ke3 {[%clk 0:00:04]}  Kd5 {[%clk 0:00:18]} 56. Kf4 {[%clk 0:00:04]}  Rf2+ {[%clk 0:00:18]} 57. Bf3+ {[%clk 0:00:04]}  Kc5 {[%clk 0:00:18]} 58. Ke4 {[%clk 0:00:04]}  Rf1 {[%clk 0:00:18]} 59. Bg4 {[%clk 0:00:03]}  Rh1 {[%clk 0:00:16]} 60. Ke5 {[%clk 0:00:03]}  Rh4 {[%clk 0:00:15]} 61. Bf3 {[%clk 0:00:03]}  Rh3 {[%clk 0:00:15]} 62. Bd4# {[%clk 0:00:03]} 1-0


[Site "https://www.chess.com"]

[Event "Titled Tuesday Blitz March 29 Early 2022"]
[White "Nguyen Hong Nhung"]
[Black "Oganian, Miran"]
[WhiteFideId "12412201"]
[BlackFideId "4122488"]
[WhiteElo "1661"]
[BlackElo "2357"]
[Result "0-1"]
[Round "03"]
[TimeControl "180+1"]
[Date "2022.03.30"]
[WhiteClock "0:00:09"]
[BlackClock "0:01:15"]

1. e4 {[%clk 0:03:00]}  e6 {[%clk 0:02:59]} 2. d4 {[%clk 0:03:00]}  d5 {[%clk 0:02:59]} 3. Nc3 {[%clk 0:03:01]}  Bb4 {[%clk 0:02:59]} 4. e5 {[%clk 0:03:01]}  c5 {[%clk 0:03:00]} 5. a3 {[%clk 0:03:01]}  Bxc3+ {[%clk 0:03:00]} 6. bxc3 {[%clk 0:03:02]}  Ne7 {[%clk 0:03:01]} 7. Qg4 {[%clk 0:03:02]}  Qc7 {[%clk 0:03:00]} 8. Qxg7 {[%clk 0:03:02]}  Rg8 {[%clk 0:03:00]} 9. Qxh7 {[%clk 0:03:03]}  cxd4 {[%clk 0:03:01]} 10. Ne2 {[%clk 0:03:03]}  Nbc6 {[%clk 0:03:02]} 11. f4 {[%clk 0:03:03]}  dxc3 {[%clk 0:03:02]} 12. Qd3 {[%clk 0:03:03]}  Bd7 {[%clk 0:03:02]} 13. Qxc3 {[%clk 0:03:03]}  O-O-O {[%clk 0:03:01]} 14. Rg1 {[%clk 0:03:03]}  d4 {[%clk 0:03:00]} 15. Qd3 {[%clk 0:02:54]}  Kb8 {[%clk 0:02:57]} 16. g4 {[%clk 0:02:54]}  Bc8 {[%clk 0:02:54]} 17. Rg3 {[%clk 0:02:51]}  b6 {[%clk 0:02:54]} 18. Bg2 {[%clk 0:02:51]}  Bb7 {[%clk 0:02:54]} 19. Bd2 {[%clk 0:02:48]}  Nd5 {[%clk 0:02:54]} 20. Rb1 {[%clk 0:02:44]}  f6 {[%clk 0:02:49]} 21. exf6 {[%clk 0:02:41]}  e5 {[%clk 0:02:49]} 22. Bxd5 {[%clk 0:02:20]}  Rxd5 {[%clk 0:02:48]} 23. g5 {[%clk 0:02:18]}  Qf7 {[%clk 0:01:46]} 24. fxe5 {[%clk 0:02:01]}  Nxe5 {[%clk 0:01:45]} 25. Bf4 {[%clk 0:02:01]}  Ka8 {[%clk 0:01:44]} 26. Qb3 {[%clk 0:01:51]}  Qg6 {[%clk 0:01:30]} 27. Rd1 {[%clk 0:01:22]}  d3 {[%clk 0:01:24]} 28. cxd3 {[%clk 0:00:59]}  Re8 {[%clk 0:01:18]} 29. Kf2 {[%clk 0:00:50]}  Qh5 {[%clk 0:01:18]} 30. h3 {[%clk 0:00:11]}  Nxd3+ {[%clk 0:01:17]} 31. Rdxd3 {[%clk 0:00:09]}  Qxe2+ {[%clk 0:01:16]} 32. Kg1 {[%clk 0:00:09]}  Qe1+ {[%clk 0:01:15]} 33. Kh2 {[%clk 0:00:08]}  Re2+ {[%clk 0:01:14]} 34. Rg2 {[%clk 0:00:08]}  Rxg2+ {[%clk 0:01:15]} 35. Kxg2 {[%clk 0:00:09]}  Rxd3+ {[%clk 0:01:16]} 36. Kh2 {[%clk 0:00:09]}  Qh1# {[%clk 0:01:15]} 0-1


[Site "https://www.chess.com"]

[Event "Titled Tuesday Blitz March 29 Early 2022"]
[White "Odegov, Artem"]
[Black "Timofeev, Artyom"]
[WhiteFideId "34183644"]
[BlackFideId "4140419"]
[WhiteElo "2286"]
[BlackElo "2594"]
[Result "0-1"]
[Round "03"]
[TimeControl "180+1"]
[Date "2022.03.29"]
[WhiteClock "0:00:01"]
[BlackClock "0:00:15"]

1. d4 {[%clk 0:02:59]}  d5 {[%clk 0:02:58]} 2. c4 {[%clk 0:02:59]}  e6 {[%clk 0:02:58]} 3. Nf3 {[%clk 0:02:59]}  c6 {[%clk 0:02:56]} 4. Nc3 {[%clk 0:02:59]}  dxc4 {[%clk 0:02:56]} 5. Bg5 {[%clk 0:02:55]}  Be7 {[%clk 0:02:53]} 6. h4 {[%clk 0:02:51]}  Nf6 {[%clk 0:02:52]} 7. e4 {[%clk 0:02:49]}  b5 {[%clk 0:02:51]} 8. Be2 {[%clk 0:02:42]}  h6 {[%clk 0:02:49]} 9. Bxf6 {[%clk 0:02:28]}  Bxf6 {[%clk 0:02:49]} 10. g4 {[%clk 0:02:28]}  Bb7 {[%clk 0:02:48]} 11. Qd2 {[%clk 0:02:26]}  Nd7 {[%clk 0:02:41]} 12. O-O-O {[%clk 0:02:23]}  Nb6 {[%clk 0:02:37]} 13. g5 {[%clk 0:02:21]}  Be7 {[%clk 0:02:37]} 14. gxh6 {[%clk 0:02:20]}  Rxh6 {[%clk 0:02:18]} 15. Rdg1 {[%clk 0:02:17]}  Bf8 {[%clk 0:02:18]} 16. Ne5 {[%clk 0:01:55]}  Qc7 {[%clk 0:02:16]} 17. Qg5 {[%clk 0:00:54]}  b4 {[%clk 0:02:11]} 18. Nd1 {[%clk 0:00:52]}  c3 {[%clk 0:02:08]} 19. bxc3 {[%clk 0:00:49]}  bxc3 {[%clk 0:02:05]} 20. Nxc3 {[%clk 0:00:50]}  Rf6 {[%clk 0:01:57]} 21. Nxf7 {[%clk 0:00:20]}  Rxf7 {[%clk 0:01:43]} 22. Bh5 {[%clk 0:00:18]}  Qe7 {[%clk 0:01:38]} 23. Qf4 {[%clk 0:00:12]}  Nc4 {[%clk 0:01:29]} 24. Kc2 {[%clk 0:00:04]}  Nd6 {[%clk 0:01:27]} 25. Rb1 {[%clk 0:00:02]}  O-O-O {[%clk 0:01:24]} 26. Bxf7 {[%clk 0:00:03]}  Qxf7 {[%clk 0:01:23]} 27. Qg4 {[%clk 0:00:01]}  Qxf2+ {[%clk 0:01:22]} 28. Kb3 {[%clk 0:00:01]}  Qf7 {[%clk 0:01:07]} 29. Rhf1 {[%clk 0:00:01]}  Qd7 {[%clk 0:01:07]} 30. e5 {[%clk 0:00:01]}  Nf5 {[%clk 0:01:07]} 31. Kb2 {[%clk 0:00:01]}  Qxd4 {[%clk 0:01:05]} 32. Qxd4 {[%clk 0:00:02]}  Rxd4 {[%clk 0:01:04]} 33. Rbd1 {[%clk 0:00:02]}  Rxh4 {[%clk 0:01:01]} 34. Ne2 {[%clk 0:00:01]}  Rb4+ {[%clk 0:00:49]} 35. Kc3 {[%clk 0:00:01]}  Re4 {[%clk 0:00:47]} 36. Nf4 {[%clk 0:00:01]}  Rxe5 {[%clk 0:00:48]} 37. Ng6 {[%clk 0:00:01]}  Rc5+ {[%clk 0:00:48]} 38. Kb2 {[%clk 0:00:01]}  Bd6 {[%clk 0:00:43]} 39. Rxf5 {[%clk 0:00:02]}  exf5 {[%clk 0:00:40]} 40. Rxd6 {[%clk 0:00:02]}  Kc7 {[%clk 0:00:41]} 41. Re6 {[%clk 0:00:03]}  Rd5 {[%clk 0:00:41]} 42. Re7+ {[%clk 0:00:02]}  Rd7 {[%clk 0:00:41]} 43. Re8 {[%clk 0:00:02]}  c5 {[%clk 0:00:32]} 44. Rf8 {[%clk 0:00:02]}  Be4 {[%clk 0:00:31]} 45. Ne5 {[%clk 0:00:02]}  Re7 {[%clk 0:00:31]} 46. Ng6 {[%clk 0:00:01]}  Rd7 {[%clk 0:00:29]} 47. Ne5 {[%clk 0:00:01]}  Rd2+ {[%clk 0:00:29]} 48. Kc3 {[%clk 0:00:02]}  Rxa2 {[%clk 0:00:28]} 49. Rf7+ {[%clk 0:00:02]}  Kd6 {[%clk 0:00:29]} 50. Nc4+ {[%clk 0:00:02]}  Ke6 {[%clk 0:00:29]} 51. Rxg7 {[%clk 0:00:02]}  Rc2+ {[%clk 0:00:29]} 52. Kb3 {[%clk 0:00:03]}  Rc1 {[%clk 0:00:29]} 53. Rg6+ {[%clk 0:00:02]}  Ke7 {[%clk 0:00:29]} 54. Rg7+ {[%clk 0:00:02]}  Kf6 {[%clk 0:00:29]} 55. Rg8 {[%clk 0:00:02]}  Bd5 {[%clk 0:00:28]} 56. Rf8+ {[%clk 0:00:02]}  Ke7 {[%clk 0:00:29]} 57. Rxf5 {[%clk 0:00:02]}  Bxc4+ {[%clk 0:00:20]} 58. Kb2 {[%clk 0:00:03]}  Rb1+ {[%clk 0:00:18]} 59. Kc2 {[%clk 0:00:01]}  Rb5 {[%clk 0:00:15]} 0-1


[Site "https://www.chess.com"]

[Event "Titled Tuesday Blitz March 29 Early 2022"]
[White "Oro, Luis"]
[Black "Lewtak, Damian"]
[WhiteFideId "104094"]
[BlackFideId "1141724"]
[WhiteElo "2358"]
[BlackElo "2362"]
[Result "0-1"]
[Round "03"]
[TimeControl "180+1"]
[Date "2022.03.30"]
[WhiteClock "0:00:03"]
[BlackClock "0:00:05"]

1. e4 {[%clk 0:02:54]}  b6 {[%clk 0:03:00]} 2. d4 {[%clk 0:02:53]}  Bb7 {[%clk 0:03:01]} 3. Bd3 {[%clk 0:02:52]}  e6 {[%clk 0:03:01]} 4. f4 {[%clk 0:02:51]}  Ne7 {[%clk 0:02:58]} 5. Nf3 {[%clk 0:02:49]}  g6 {[%clk 0:02:58]} 6. O-O {[%clk 0:02:46]}  Bg7 {[%clk 0:02:58]} 7. Re1 {[%clk 0:02:46]}  O-O {[%clk 0:02:58]} 8. c3 {[%clk 0:02:46]}  d6 {[%clk 0:02:59]} 9. Be3 {[%clk 0:02:46]}  Nd7 {[%clk 0:02:59]} 10. Nbd2 {[%clk 0:02:47]}  h6 {[%clk 0:02:58]} 11. Qe2 {[%clk 0:02:46]}  f5 {[%clk 0:02:57]} 12. e5 {[%clk 0:02:43]}  Nd5 {[%clk 0:02:56]} 13. g3 {[%clk 0:02:39]}  Nxe3 {[%clk 0:02:55]} 14. Qxe3 {[%clk 0:02:39]}  dxe5 {[%clk 0:02:55]} 15. fxe5 {[%clk 0:02:38]}  g5 {[%clk 0:02:53]} 16. Qe2 {[%clk 0:02:25]}  Qe7 {[%clk 0:02:50]} 17. Rf1 {[%clk 0:02:20]}  Rad8 {[%clk 0:02:49]} 18. Bc4 {[%clk 0:02:20]}  c5 {[%clk 0:02:45]} 19. Rae1 {[%clk 0:02:15]}  cxd4 {[%clk 0:02:36]} 20. Nxd4 {[%clk 0:02:11]}  Nxe5 {[%clk 0:02:22]} 21. Bxe6+ {[%clk 0:02:09]}  Kh8 {[%clk 0:02:21]} 22. Bxf5 {[%clk 0:02:07]}  Qc5 {[%clk 0:02:15]} 23. Nb3 {[%clk 0:02:02]}  Qd5 {[%clk 0:02:13]} 24. Be4 {[%clk 0:01:59]}  Rxf1+ {[%clk 0:02:12]} 25. Kxf1 {[%clk 0:01:59]}  Rf8+ {[%clk 0:02:12]} 26. Kg1 {[%clk 0:01:59]}  Qd7 {[%clk 0:02:05]} 27. Bxb7 {[%clk 0:01:59]}  Qxb7 {[%clk 0:02:06]} 28. Qe4 {[%clk 0:01:59]}  Qf7 {[%clk 0:02:00]} 29. Qg2 {[%clk 0:01:51]}  Nd3 {[%clk 0:01:55]} 30. Re2 {[%clk 0:01:47]}  a5 {[%clk 0:01:43]} 31. Rd2 {[%clk 0:01:41]}  Qg6 {[%clk 0:01:31]} 32. Qe2 {[%clk 0:01:24]}  Ne5 {[%clk 0:01:23]} 33. Kg2 {[%clk 0:01:11]}  g4 {[%clk 0:01:19]} 34. Rd1 {[%clk 0:00:38]}  Nf3 {[%clk 0:01:06]} 35. Rf1 {[%clk 0:00:37]}  a4 {[%clk 0:01:06]} 36. Nd2 {[%clk 0:00:32]}  Bxd4 {[%clk 0:00:58]} 37. cxd4 {[%clk 0:00:29]}  Qc2 {[%clk 0:00:54]} 38. Rf2 {[%clk 0:00:24]}  Qxb2 {[%clk 0:00:45]} 39. Qe3 {[%clk 0:00:20]}  Kg8 {[%clk 0:00:25]} 40. Qxh6 {[%clk 0:00:18]}  Ne1+ {[%clk 0:00:23]} 41. Kf1 {[%clk 0:00:16]}  Rxf2+ {[%clk 0:00:11]} 42. Kxf2 {[%clk 0:00:17]}  Nd3+ {[%clk 0:00:11]} 43. Ke3 {[%clk 0:00:17]}  Nc1 {[%clk 0:00:11]} 44. Qg6+ {[%clk 0:00:16]}  Kf8 {[%clk 0:00:12]} 45. Qf6+ {[%clk 0:00:15]}  Ke8 {[%clk 0:00:12]} 46. Qe6+ {[%clk 0:00:16]}  Kd8 {[%clk 0:00:11]} 47. Qd6+ {[%clk 0:00:17]}  Kc8 {[%clk 0:00:12]} 48. Qc6+ {[%clk 0:00:17]}  Kb8 {[%clk 0:00:12]} 49. Qc4 {[%clk 0:00:08]}  Nxa2 {[%clk 0:00:10]} 50. d5 {[%clk 0:00:07]}  Qc3+ {[%clk 0:00:08]} 51. Qxc3 {[%clk 0:00:07]}  Nxc3 {[%clk 0:00:09]} 52. Kd4 {[%clk 0:00:06]}  Nb5+ {[%clk 0:00:09]} 53. Kc4 {[%clk 0:00:07]}  Nd6+ {[%clk 0:00:09]} 54. Kb4 {[%clk 0:00:07]}  b5 {[%clk 0:00:10]} 55. Nb1 {[%clk 0:00:07]}  Kc7 {[%clk 0:00:10]} 56. Nc3 {[%clk 0:00:08]}  Kd7 {[%clk 0:00:10]} 57. Ne2 {[%clk 0:00:07]}  Ke7 {[%clk 0:00:10]} 58. Nf4 {[%clk 0:00:07]}  Kf6 {[%clk 0:00:10]} 59. Ne6 {[%clk 0:00:06]}  Ke5 {[%clk 0:00:10]} 60. Nf4 {[%clk 0:00:06]}  Kd4 {[%clk 0:00:09]} 61. Ne6+ {[%clk 0:00:04]}  Kxd5 {[%clk 0:00:09]} 62. Nf4+ {[%clk 0:00:04]}  Ke4 {[%clk 0:00:09]} 63. Nh5 {[%clk 0:00:05]}  Kf3 {[%clk 0:00:09]} 64. Nf6 {[%clk 0:00:06]}  Ne4 {[%clk 0:00:08]} 65. Nd5 {[%clk 0:00:06]}  Nxg3 {[%clk 0:00:06]} 66. Ne3 {[%clk 0:00:06]}  Ne4 {[%clk 0:00:05]} 67. Nf5 {[%clk 0:00:05]}  Nd2 {[%clk 0:00:03]} 68. Nd4+ {[%clk 0:00:04]}  Kg2 {[%clk 0:00:03]} 69. Nxb5 {[%clk 0:00:05]}  Kxh2 {[%clk 0:00:04]} 70. Kxa4 {[%clk 0:00:05]}  g3 {[%clk 0:00:04]} 71. Nd4 {[%clk 0:00:06]}  g2 {[%clk 0:00:05]} 72. Ne2 {[%clk 0:00:06]}  Ne4 {[%clk 0:00:05]} 73. Kb3 {[%clk 0:00:06]}  Ng3 {[%clk 0:00:06]} 74. Nd4 {[%clk 0:00:06]}  Kh3 {[%clk 0:00:04]} 75. Nf3 {[%clk 0:00:07]}  Kg4 {[%clk 0:00:04]} 76. Ng1 {[%clk 0:00:06]}  Kf4 {[%clk 0:00:05]} 77. Kc3 {[%clk 0:00:06]}  Ke3 {[%clk 0:00:05]} 78. Kc2 {[%clk 0:00:06]}  Kf2 {[%clk 0:00:05]} 79. Nh3+ {[%clk 0:00:06]}  Kf1 {[%clk 0:00:05]} 80. Kd2 {[%clk 0:00:06]}  Ne2 {[%clk 0:00:05]} 81. Ke3 {[%clk 0:00:06]}  Nc1 {[%clk 0:00:04]} 82. Kf3 {[%clk 0:00:06]}  Nd3 {[%clk 0:00:05]} 83. Kg3 {[%clk 0:00:07]}  Nf2 {[%clk 0:00:05]} 84. Nxf2 {[%clk 0:00:03]}  g1=Q+ {[%clk 0:00:05]} 0-1


[Site "https://www.chess.com"]

[Event "Titled Tuesday Blitz March 29 Early 2022"]
[White "Pajeken, Jakob Leon"]
[Black "Matlakov, Maxim"]
[WhiteFideId "12942839"]
[BlackFideId "4168003"]
[WhiteElo "2351"]
[BlackElo "2669"]
[Result "0-1"]
[Round "03"]
[TimeControl "180+1"]
[Date "2022.03.29"]
[WhiteClock "0:00:06"]
[BlackClock "0:00:11"]

1. d4 {[%clk 0:03:00]}  Nf6 {[%clk 0:02:59]} 2. Nf3 {[%clk 0:03:00]}  d5 {[%clk 0:02:59]} 3. c4 {[%clk 0:02:59]}  c6 {[%clk 0:02:59]} 4. e3 {[%clk 0:02:58]}  g6 {[%clk 0:02:58]} 5. Bd3 {[%clk 0:02:56]}  Bg7 {[%clk 0:02:58]} 6. O-O {[%clk 0:02:57]}  O-O {[%clk 0:02:58]} 7. Nc3 {[%clk 0:02:56]}  Bg4 {[%clk 0:02:46]} 8. h3 {[%clk 0:02:55]}  Bxf3 {[%clk 0:02:46]} 9. Qxf3 {[%clk 0:02:55]}  e6 {[%clk 0:02:47]} 10. b3 {[%clk 0:02:46]}  Nbd7 {[%clk 0:02:47]} 11. Bb2 {[%clk 0:02:41]}  Re8 {[%clk 0:02:47]} 12. Rfd1 {[%clk 0:02:32]}  Qe7 {[%clk 0:02:47]} 13. e4 {[%clk 0:02:28]}  dxe4 {[%clk 0:02:26]} 14. Nxe4 {[%clk 0:02:25]}  Nxe4 {[%clk 0:02:26]} 15. Bxe4 {[%clk 0:02:26]}  a5 {[%clk 0:02:25]} 16. a4 {[%clk 0:02:07]}  f5 {[%clk 0:02:02]} 17. Bc2 {[%clk 0:02:03]}  e5 {[%clk 0:02:02]} 18. Re1 {[%clk 0:01:45]}  e4 {[%clk 0:01:52]} 19. Qg3 {[%clk 0:01:45]}  Nf6 {[%clk 0:01:46]} 20. Bc3 {[%clk 0:01:40]}  c5 {[%clk 0:01:30]} 21. d5 {[%clk 0:01:25]}  Nh5 {[%clk 0:01:26]} 22. Qe3 {[%clk 0:01:25]}  f4 {[%clk 0:01:15]} 23. Qd2 {[%clk 0:01:20]}  e3 {[%clk 0:01:15]} 24. Qd3 {[%clk 0:01:13]}  exf2+ {[%clk 0:01:04]} 25. Kxf2 {[%clk 0:01:14]}  Qh4+ {[%clk 0:01:04]} 26. Kg1 {[%clk 0:01:14]}  Bd4+ {[%clk 0:01:03]} 27. Kh1 {[%clk 0:00:58]}  Re3 {[%clk 0:00:48]} 28. Rxe3 {[%clk 0:00:55]}  fxe3 {[%clk 0:00:49]} 29. Bxd4 {[%clk 0:00:50]}  cxd4 {[%clk 0:00:50]} 30. Bd1 {[%clk 0:00:45]}  Qe1+ {[%clk 0:00:47]} 31. Kh2 {[%clk 0:00:44]}  Qg3+ {[%clk 0:00:48]} 32. Kh1 {[%clk 0:00:41]}  Nf4 {[%clk 0:00:47]} 33. Qe4 {[%clk 0:00:40]}  d3 {[%clk 0:00:43]} 34. Bf3 {[%clk 0:00:34]}  e2 {[%clk 0:00:42]} 35. d6 {[%clk 0:00:32]}  d2 {[%clk 0:00:32]} 36. Bxe2 {[%clk 0:00:26]}  Qe1+ {[%clk 0:00:32]} 37. Kh2 {[%clk 0:00:24]}  Qxe2 {[%clk 0:00:32]} 38. Qxe2 {[%clk 0:00:23]}  Nxe2 {[%clk 0:00:32]} 39. Rd1 {[%clk 0:00:23]}  Nd4 {[%clk 0:00:30]} 40. Rxd2 {[%clk 0:00:19]}  Nxb3 {[%clk 0:00:30]} 41. Rb2 {[%clk 0:00:15]}  Nc5 {[%clk 0:00:30]} 42. Rb5 {[%clk 0:00:15]}  Nxa4 {[%clk 0:00:23]} 43. Rxb7 {[%clk 0:00:12]}  Nc5 {[%clk 0:00:21]} 44. Rc7 {[%clk 0:00:12]}  Ne6 {[%clk 0:00:21]} 45. Re7 {[%clk 0:00:12]}  Nd8 {[%clk 0:00:17]} 46. Rc7 {[%clk 0:00:06]}  Kf8 {[%clk 0:00:15]} 47. c5 {[%clk 0:00:05]}  a4 {[%clk 0:00:15]} 48. d7 {[%clk 0:00:02]}  Ke7 {[%clk 0:00:14]} 49. c6 {[%clk 0:00:02]}  Nxc6 {[%clk 0:00:09]} 50. Rxc6 {[%clk 0:00:01]}  Kxd7 {[%clk 0:00:10]} 51. Rc1 {[%clk 0:00:02]}  a3 {[%clk 0:00:10]} 52. Kg3 {[%clk 0:00:03]}  a2 {[%clk 0:00:10]} 53. Ra1 {[%clk 0:00:03]}  Ke6 {[%clk 0:00:11]} 54. Kf3 {[%clk 0:00:04]}  Ke5 {[%clk 0:00:10]} 55. Ke3 {[%clk 0:00:04]}  Ra3+ {[%clk 0:00:09]} 56. Kd2 {[%clk 0:00:05]}  Kf4 {[%clk 0:00:10]} 57. Kc2 {[%clk 0:00:06]}  Kg3 {[%clk 0:00:10]} 58. Kb2 {[%clk 0:00:06]}  Ra8 {[%clk 0:00:11]} 0-1


[Site "https://www.chess.com"]

[Event "Titled Tuesday Blitz March 29 Early 2022"]
[White "Pein, Jonathan"]
[Black "Ravi, Teja S."]
[WhiteFideId "417092"]
[BlackFideId "5017220"]
[WhiteElo "2140"]
[BlackElo "2412"]
[Result "0-1"]
[Round "03"]
[TimeControl "180+1"]
[Date "2022.03.30"]
[WhiteClock "0:00:11"]
[BlackClock "0:01:23"]

1. b3 {[%clk 0:03:00]}  d5 {[%clk 0:02:59]} 2. Bb2 {[%clk 0:03:01]}  c6 {[%clk 0:02:58]} 3. Nf3 {[%clk 0:03:00]}  Bg4 {[%clk 0:02:57]} 4. d4 {[%clk 0:03:00]}  Nd7 {[%clk 0:02:54]} 5. Nbd2 {[%clk 0:02:49]}  Ngf6 {[%clk 0:02:53]} 6. g3 {[%clk 0:02:47]}  e6 {[%clk 0:02:53]} 7. Bg2 {[%clk 0:02:47]}  Bd6 {[%clk 0:02:53]} 8. O-O {[%clk 0:02:48]}  O-O {[%clk 0:02:54]} 9. c4 {[%clk 0:02:49]}  a5 {[%clk 0:02:54]} 10. a3 {[%clk 0:02:46]}  Qb8 {[%clk 0:02:52]} 11. Re1 {[%clk 0:02:44]}  Re8 {[%clk 0:02:50]} 12. Qc2 {[%clk 0:02:36]}  Bf5 {[%clk 0:02:49]} 13. Qc3 {[%clk 0:02:33]}  h6 {[%clk 0:02:47]} 14. Ne5 {[%clk 0:02:28]}  Rd8 {[%clk 0:02:32]} 15. Nxd7 {[%clk 0:02:27]}  Rxd7 {[%clk 0:02:29]} 16. e4 {[%clk 0:02:24]}  dxe4 {[%clk 0:02:30]} 17. Nxe4 {[%clk 0:02:25]}  Nxe4 {[%clk 0:02:29]} 18. Bxe4 {[%clk 0:02:26]}  Bxe4 {[%clk 0:02:28]} 19. Rxe4 {[%clk 0:02:27]}  Be7 {[%clk 0:02:28]} 20. Rg4 {[%clk 0:02:18]}  Bf6 {[%clk 0:02:27]} 21. Qf3 {[%clk 0:02:07]}  Qd8 {[%clk 0:02:27]} 22. Re1 {[%clk 0:02:00]}  c5 {[%clk 0:02:22]} 23. Bc1 {[%clk 0:01:33]}  h5 {[%clk 0:02:16]} 24. Rf4 {[%clk 0:01:15]}  cxd4 {[%clk 0:02:07]} 25. Qxh5 {[%clk 0:01:11]}  d3 {[%clk 0:02:07]} 26. Bd2 {[%clk 0:01:09]}  Bg5 {[%clk 0:02:02]} 27. Ree4 {[%clk 0:00:43]}  g6 {[%clk 0:01:48]} 28. Qh3 {[%clk 0:00:31]}  Bxf4 {[%clk 0:01:32]} 29. Rxf4 {[%clk 0:00:32]}  Rd4 {[%clk 0:01:30]} 30. Bc3 {[%clk 0:00:17]}  d2 {[%clk 0:01:23]} 31. Rxd4 {[%clk 0:00:16]}  Qxd4 {[%clk 0:01:23]} 32. Bxd4 {[%clk 0:00:11]}  d1=Q+ {[%clk 0:01:23]} 0-1


[Site "https://www.chess.com"]